bitfinex/quotes_BTCUSD_20220202
["timestamp","ask_amount","ask_price","bid_price","bid_amount"]
[1643776458598,0.00035496,38468.0,38465.0,0.349944]
[1643776458796,0.129998,38477.0,38465.0,0.349944]
[1643776458797,0.14453518,38478.0,38466.0,0.42924308]
[1643776458998,0.14453518,38478.0,38469.0,0.28969637]
[1643776459197,0.02083518,38478.0,38469.0,0.28969637]
[1643776459602,0.02083518,38478.0,38469.0,0.38969637]
[1643776459797,0.02083518,38478.0,38471.0,0.06498531]
[1643776460000,0.02083518,38478.0,38472.0,0.349944]
[1643776460448,0.00079009,38476.0,38472.0,0.67918708]
[1643776461048,0.00079009,38476.0,38472.0,0.349944]
[1643776461251,0.26674502,38481.0,38472.0,0.67918708]
[1643776461449,0.26674502,38481.0,38475.0,0.064974]
[1643776461450,0.00079009,38476.0,38475.0,0.064974]
[1643776461649,0.00079009,38476.0,38475.0,0.414918]
[1643776462047,0.00079009,38476.0,38475.0,0.64890875]
[1643776462247,0.00079009,38476.0,38475.0,0.74890875]
[1643776462449,0.3807,38486.0,38475.0,0.99672563]
[1643776462649,0.00132084,38477.0,38476.0,0.09373743]
[1643776462849,0.00132084,38477.0,38476.0,0.68219577]
[1643776463250,0.00132084,38477.0,38476.0,0.71409577]
[1643776463751,0.28314875,38485.0,38476.0,0.71409577]
[1643776463752,0.28314875,38485.0,38477.0,0.12993862]
[1643776463950,0.28314875,38485.0,38484.0,0.1007278]
[1643776464201,0.45248437,38487.0,38484.0,0.1007278]
[1643776464694,0.27666286,38487.0,38484.0,0.1007278]
[1643776465094,0.27798356,38487.0,38484.0,0.1007278]
[1643776465295,0.0013207,38487.0,38485.0,0.21337667]
[1643776465495,0.0013207,38487.0,38485.0,0.20988146]
[1643776465695,0.0013207,38487.0,38484.0,0.1007278]
[1643776466097,0.28396702,38490.0,38484.0,0.1007278]
[1643776466299,0.0013207,38487.0,38484.0,0.1007278]
[1643776466897,0.0013207,38487.0,38484.0,0.21759434]
[1643776467297,0.21858902,38489.0,38484.0,0.21759434]
[1643776467597,0.0013207,38487.0,38484.0,0.1526278]
[1643776468445,0.21858902,38489.0,38484.0,0.1526278]
[1643776468645,0.0013207,38487.0,38484.0,0.1526278]
[1643776469247,0.0013207,38487.0,38485.0,0.21687275]
[1643776469446,0.0013207,38487.0,38484.0,0.1007278]
[1643776469644,0.24179151,38491.0,38484.0,0.1007278]
[1643776469645,0.06597,38491.0,38484.0,0.1007278]
[1643776469845,0.0013207,38487.0,38484.0,0.1007278]
[1643776470846,0.36899198,38490.0,38484.0,0.1007278]
[1643776471049,0.0013207,38487.0,38484.0,0.1007278]
[1643776471450,0.0013207,38487.0,38482.0,0.06496893]
[1643776472102,0.48396498,38490.0,38481.0,0.06497244]
[1643776472301,0.36567189,38485.0,38481.0,0.06497244]
[1643776472501,0.07687241,38483.0,38479.0,0.0949501]
[1643776472701,0.00132071,38486.0,38480.0,0.21590035]
[1643776473403,0.001,38491.0,38480.0,0.21590035]
[1643776473605,0.00132073,38485.0,38480.0,0.21590035]
[1643776474403,0.00132073,38485.0,38481.0,0.12993485]
[1643776474603,0.01865914,38490.0,38483.0,0.25517208]
[1643776474804,0.00132074,38484.0,38483.0,0.25517208]
[1643776475104,0.00132074,38484.0,38483.0,0.65701608]
[1643776475306,0.00132074,38484.0,38483.0,0.90701608]
[1643776475551,0.00132074,38484.0,38483.0,0.97197908]
[1643776475750,0.001,38491.0,38483.0,1.2831312]
[1643776475950,0.001,38491.0,38489.0,0.2986829]
[1643776476754,0.001,38491.0,38489.0,0.65816431]
[1643776476953,0.001,38491.0,38489.0,0.86928109]
[1643776477151,0.001,38491.0,38490.0,0.21937663]
[1643776478153,0.001,38491.0,38490.0,0.56932063]
[1643776478456,0.001,38492.0,38490.0,0.56932063]
[1643776478457,0.01813837,38496.0,38492.0,0.56494559]
[1643776478659,0.32746772,38516.0,38497.0,0.00897348]
[1643776478856,0.27336236,38524.0,38497.0,0.00897348]
[1643776478857,0.32746772,38522.0,38500.0,0.5]
[1643776479056,0.04928943,38523.0,38520.0,0.24642186]
[1643776479321,0.58303927,38526.0,38521.0,0.07605945]
[1643776479517,0.38203927,38530.0,38521.0,0.07605945]
[1643776479718,0.42,38533.0,38521.0,0.07605945]
[1643776479719,0.0411362,38532.0,38521.0,0.07605945]
[1643776479915,0.42,38533.0,38521.0,0.07605945]
[1643776480118,0.25064766,38527.0,38521.0,0.07605945]
[1643776480918,0.25064766,38527.0,38520.0,0.0519]
[1643776480919,0.25064766,38527.0,38522.0,0.12979825]
[1643776482217,0.25064766,38527.0,38523.0,0.09848102]
[1643776483051,0.25197605,38527.0,38523.0,0.09848102]
[1643776483452,0.00172839,38527.0,38523.0,0.09848102]
[1643776484052,0.0004,38527.0,38523.0,0.09848102]
[1643776484255,0.00132839,38527.0,38524.0,0.71532813]
[1643776485254,0.02081718,38532.0,38525.0,0.349944]
[1643776485454,0.00132839,38527.0,38526.0,0.28651651]
[1643776485654,0.00132839,38527.0,38526.0,0.63646051]
[1643776486554,0.2306859,38531.0,38526.0,0.63646051]
[1643776486806,0.00531269,38534.0,38530.0,0.06489368]
[1643776487804,0.27347594,38533.0,38530.0,0.06489368]
[1643776488005,0.27347594,38533.0,38530.0,0.1638441]
[1643776488006,0.32589249,38532.0,38530.0,0.1638441]
[1643776488304,0.32589249,38532.0,38530.0,0.06489368]
[1643776488507,0.164897,38544.0,38530.0,0.06489368]
[1643776488706,0.13797647,38543.0,38530.0,0.06489368]
[1643776488907,0.27795985,38532.0,38530.0,0.06489368]
[1643776489206,0.42,38540.0,38530.0,0.06489368]
[1643776489606,0.42,38540.0,38530.0,0.27880856]
[1643776489809,0.42,38540.0,38530.0,0.06489368]
[1643776490006,0.20353611,38537.0,38530.0,0.06489368]
[1643776490649,0.20353611,38537.0,38530.0,0.2807624]
[1643776490948,0.20353611,38537.0,38530.0,0.28131234]
[1643776491148,0.20353611,38537.0,38530.0,0.06489368]
[1643776491349,0.20353611,38537.0,38536.0,0.09477682]
[1643776491753,0.42,38540.0,38536.0,0.09477682]
[1643776492151,0.52,38540.0,38536.0,0.09477682]
[1643776492351,0.52,38540.0,38532.0,0.06488997]
[1643776492751,0.52132987,38540.0,38532.0,0.06488997]
[1643776493350,0.24733897,38536.0,38532.0,0.06488997]
[1643776493550,0.52132987,38540.0,38532.0,0.06488997]
[1643776493751,0.52,38540.0,38536.0,0.07883572]
[1643776493950,0.52,38540.0,38532.0,0.06488997]
[1643776494207,0.47,38540.0,38532.0,0.06488997]
[1643776494400,0.20998995,38539.0,38532.0,0.06488997]
[1643776495199,0.0013299,38537.0,38532.0,0.06488997]
[1643776496001,0.0013299,38537.0,38533.0,0.07517623]
[1643776496202,0.20998995,38539.0,38533.0,0.07517623]
[1643776496401,0.00132992,38536.0,38533.0,0.28609047]
[1643776496901,0.00132992,38536.0,38534.0,8.621e-05]
[1643776497300,0.20998995,38539.0,38534.0,8.621e-05]
[1643776497504,0.00132991,38537.0,38534.0,8.621e-05]
[1643776497950,0.2633487,38538.0,38534.0,8.621e-05]
[1643776498751,0.2633487,38538.0,38534.0,0.21984938]
[1643776498952,0.2633487,38538.0,38532.0,0.02020333]
[1643776499352,0.2633487,38538.0,38531.0,0.25648344]
[1643776499551,0.09288606,38537.0,38530.0,0.12977658]
[1643776499756,0.09288606,38537.0,38524.0,0.3928]
[1643776499757,0.77022552,38536.0,38524.0,0.3928]
[1643776499953,0.0519,38535.0,38533.0,0.00111106]
[1643776500156,0.7845968,38534.0,38533.0,0.00111106]
[1643776500352,1.60683322,38534.0,38533.0,0.00111106]
[1643776500551,1.80777322,38534.0,38533.0,0.00111106]
[1643776500752,1.2737268,38534.0,38533.0,1.106e-05]
[1643776500955,1.03913,38534.0,38520.0,0.06490222]
[1643776501153,0.3345968,38533.0,38520.0,0.06490222]
[1643776501453,0.0519,38532.0,38520.0,0.06490222]
[1643776501714,0.43723,38534.0,38522.0,0.26285815]
[1643776501715,0.50965753,38534.0,38522.0,0.26285815]
[1643776501909,0.30871753,38534.0,38525.0,0.08531578]
[1643776502510,0.01985096,38534.0,38526.0,0.55]
[1643776502713,0.27024249,38535.0,38527.0,0.401844]
[1643776502909,0.14527677,38542.0,38527.0,0.0519]
[1643776503109,0.265172,38543.0,38528.0,0.2340683]
[1643776503510,0.24109558,38537.0,38531.0,0.00055418]
[1643776503709,0.24109558,38537.0,38532.0,0.09210106]
[1643776504109,0.2682566,38534.0,38532.0,0.09210106]
[1643776504810,0.2632566,38534.0,38532.0,0.09210106]
[1643776505012,0.24242573,38537.0,38532.0,0.09210106]
[1643776505456,0.00133015,38537.0,38532.0,0.09210106]
[1643776505655,0.14992787,38546.0,38532.0,0.09210106]
[1643776505855,0.06489,38546.0,38532.0,0.09210106]
[1643776506057,0.00133018,38537.0,38533.0,0.21616249]
[1643776506258,0.00133018,38537.0,38532.0,0.09210106]
[1643776506857,0.27461172,38538.0,38532.0,0.09210106]
[1643776507258,0.00133018,38537.0,38532.0,0.09210106]
[1643776508058,0.27461172,38538.0,38532.0,0.09210106]
[1643776508257,0.00133018,38537.0,38532.0,0.09210106]
[1643776509058,0.00133018,38537.0,38533.0,0.21390818]
[1643776509307,0.27461172,38538.0,38532.0,0.09210106]
[1643776509508,0.00133019,38537.0,38532.0,0.09210106]
[1643776510607,0.27461172,38538.0,38532.0,0.09210106]
[1643776510806,0.00133018,38537.0,38532.0,0.09210106]
[1643776511607,0.064888,38547.0,38533.0,0.7353532]
[1643776511808,0.00938586,38549.0,38533.0,0.7353532]
[1643776512009,0.00133018,38537.0,38534.0,0.1519]
[1643776512209,0.00133018,38537.0,38535.0,0.5852972]
[1643776512412,0.14421776,38552.0,38538.0,0.55]
[1643776512613,0.51939572,38549.0,38539.0,0.53889559]
[1643776512811,0.51939572,38549.0,38539.0,0.30354239]
[1643776513058,0.58427872,38549.0,38539.0,0.30354239]
[1643776513255,0.58427872,38549.0,38535.0,0.3504532]
[1643776513658,0.51939572,38549.0,38535.0,0.4023532]
[1643776513856,0.26894591,38543.0,38535.0,0.4023532]
[1643776514257,0.26894591,38543.0,38536.0,0.27270532]
[1643776514757,0.26894591,38543.0,38536.0,0.60805852]
[1643776515560,0.26894591,38543.0,38538.0,0.00117192]
[1643776515757,0.31299285,38545.0,38538.0,0.00117192]
[1643776515957,0.31299285,38545.0,38542.0,0.09749353]
[1643776516357,0.31299285,38545.0,38538.0,0.00117192]
[1643776516557,0.01928739,38543.0,38538.0,0.21258762]
[1643776516828,0.01928739,38543.0,38542.0,0.00117179]
[1643776517424,0.31299285,38545.0,38542.0,0.00117179]
[1643776517825,0.31299285,38545.0,38535.0,0.0519]
[1643776518026,0.27114467,38543.0,38542.0,0.00117179]
[1643776518330,0.00134664,38547.0,38542.0,0.00117179]
[1643776518528,0.02086102,38547.0,38542.0,0.00117179]
[1643776518726,0.02086102,38547.0,38542.0,3.217e-05]
[1643776518928,0.064881,38549.0,38536.0,0.22027638]
[1643776519126,0.26363587,38547.0,38536.0,0.22027638]
[1643776519326,0.064881,38549.0,38537.0,0.30561842]
[1643776519527,0.25077119,38551.0,38538.0,0.24383614]
[1643776519826,0.50470469,38552.0,38547.0,0.07780799]
[1643776520036,0.129754,38553.0,38547.0,0.07780799]
[1643776520449,0.02043961,38551.0,38547.0,0.07780799]
[1643776520854,0.00076228,38551.0,38547.0,0.07780799]
[1643776521453,0.064876,38553.0,38547.0,0.07780799]
[1643776521753,0.00076228,38551.0,38547.0,0.07780799]
[1643776521956,0.30305072,38557.0,38548.0,0.55]
[1643776522154,0.064873,38558.0,38549.0,0.285952]
[1643776522354,0.064873,38558.0,38550.0,0.349944]
[1643776522562,0.02081286,38556.0,38551.0,0.784052]
[1643776522754,0.064868,38558.0,38552.0,0.349944]
[1643776522954,0.064868,38558.0,38553.0,0.285952]
[1643776523154,0.064868,38558.0,38554.0,0.10283727]
[1643776523358,2e-06,38561.0,38554.0,0.10283727]
[1643776523758,2e-06,38561.0,38554.0,0.33688927]
[1643776523957,2e-06,38561.0,38554.0,0.10283727]
[1643776525207,0.00076704,38559.0,38554.0,0.10283727]
[1643776525609,0.00076704,38559.0,38547.0,0.118]
[1643776525610,0.46062617,38557.0,38547.0,0.118]
[1643776525807,0.28315596,38556.0,38546.0,0.37916526]
[1643776526011,0.46062617,38557.0,38546.0,0.37916526]
[1643776526408,0.46062617,38557.0,38549.0,0.00118073]
[1643776526608,0.54356656,38557.0,38550.0,0.09334614]
[1643776526807,0.28676069,38557.0,38550.0,0.09334614]
[1643776527011,0.0012279,38559.0,38551.0,0.83505596]
[1643776527219,0.0012279,38559.0,38552.0,0.449944]
[1643776527414,2e-06,38561.0,38556.0,0.01806739]
[1643776527611,2e-06,38561.0,38557.0,0.0519]
[1643776527612,0.00122797,38559.0,38557.0,0.0519]
[1643776528054,0.00122797,38559.0,38558.0,0.349944]
[1643776528456,0.00122797,38559.0,38558.0,0.77236092]
[1643776528657,2e-06,38561.0,38558.0,0.44420718]
[1643776528855,0.00122798,38560.0,38558.0,0.44420718]
[1643776529454,0.00122798,38560.0,38558.0,0.65557859]
[1643776529655,0.00122798,38560.0,38558.0,0.65854938]
[1643776529857,2e-06,38561.0,38558.0,0.44420718]
[1643776530155,0.00122997,38561.0,38558.0,0.55953766]
[1643776530355,0.00122997,38561.0,38557.0,0.0519]
[1643776531057,2e-06,38561.0,38557.0,0.0519]
[1643776531258,0.0010803,38561.0,38558.0,0.21602268]
[1643776531907,0.0010803,38561.0,38557.0,0.33452289]
[1643776532105,2e-06,38561.0,38559.0,0.09804031]
[1643776532306,2e-06,38561.0,38560.0,0.20823506]
[1643776532307,0.0010803,38561.0,38560.0,0.20823506]
[1643776532504,0.0010803,38561.0,38558.0,0.23343008]
[1643776532705,0.0010803,38561.0,38559.0,0.349944]
[1643776532905,0.0010803,38561.0,38560.0,0.61101846]
[1643776533106,0.0010803,38561.0,38560.0,0.96096246]
[1643776533306,2e-06,38561.0,38560.0,0.349944]
[1643776533506,2e-06,38561.0,38557.0,0.0519]
[1643776533914,2e-06,38561.0,38555.0,0.00091912]
[1643776534306,0.23125372,38556.0,38555.0,0.00091912]
[1643776534507,0.48452984,38561.0,38550.0,0.0774451]
[1643776534707,0.48452984,38561.0,38554.0,0.00097798]
[1643776534907,0.00111712,38559.0,38554.0,0.00097798]
[1643776535554,0.00111712,38559.0,38556.0,0.07613908]
[1643776535755,2e-06,38561.0,38556.0,0.07613908]
[1643776535954,0.00111714,38559.0,38555.0,0.00097794]
[1643776537054,0.22528897,38559.0,38550.0,0.20704022]
[1643776537254,0.2263968,38559.0,38555.0,0.0009647]
[1643776538254,0.22528897,38559.0,38552.0,0.07672758]
[1643776538454,0.2263968,38559.0,38555.0,0.0009647]
[1643776539307,0.22528897,38559.0,38549.0,0.30548932]
[1643776539507,0.54241968,38559.0,38555.0,0.0009647]
[1643776539710,2e-06,38561.0,38555.0,0.00029527]
[1643776540509,2e-06,38561.0,38548.0,0.33441797]
[1643776540808,2e-06,38561.0,38553.0,0.07707179]
[1643776541810,2e-06,38561.0,38554.0,0.28356012]
[1643776542012,0.00111359,38559.0,38555.0,0.349944]
[1643776543054,0.24228088,38561.0,38555.0,0.349944]
[1643776543255,0.00111359,38559.0,38554.0,0.34999253]
[1643776543455,0.00111359,38559.0,38555.0,0.349944]
[1643776544159,2e-06,38561.0,38554.0,0.34999253]
[1643776544356,0.00111359,38559.0,38554.0,0.25935766]
[1643776545358,0.21336017,38561.0,38554.0,0.25935766]
[1643776545559,0.00110916,38559.0,38553.0,0.26032715]
[1643776546718,0.27240244,38558.0,38553.0,0.26032715]
[1643776547307,0.27240244,38558.0,38553.0,0.00096801]
[1643776547706,0.21058988,38555.0,38550.0,0.0648523]
[1643776547909,0.08489273,38552.0,38549.0,0.29651412]
[1643776548108,0.21058988,38555.0,38549.0,0.064854]
[1643776549311,0.21058988,38555.0,38550.0,0.00096927]
[1643776550108,0.21058988,38555.0,38549.0,0.064854]
[1643776550314,0.21058988,38555.0,38551.0,0.00096925]
[1643776551153,0.31296351,38555.0,38551.0,0.00096925]
[1643776551356,0.31296351,38555.0,38550.0,0.06485085]
[1643776551555,0.29215659,38555.0,38551.0,0.00096924]
[1643776551755,0.27240244,38558.0,38551.0,0.00096924]
[1643776551958,0.27240244,38558.0,38552.0,0.064849]
[1643776552555,0.01874549,38558.0,38552.0,0.064849]
[1643776552754,0.01874549,38558.0,38553.0,0.00096892]
[1643776552958,0.20395417,38559.0,38553.0,0.00096892]
[1643776553856,0.2028443,38559.0,38552.0,0.064849]
[1643776554057,0.05,38558.0,38553.0,0.00096892]
[1643776554914,0.38850326,38554.0,38548.0,0.064855]
[1643776555113,0.26441005,38552.0,38548.0,0.064855]
[1643776555313,0.43850326,38554.0,38548.0,0.064855]
[1643776555314,0.29680622,38554.0,38548.0,0.064855]
[1643776555514,0.34680622,38554.0,38548.0,0.064855]
[1643776556316,0.2071257,38553.0,38549.0,0.00096908]
[1643776556714,0.34680622,38554.0,38549.0,0.00096908]
[1643776557119,0.36534763,38554.0,38549.0,0.00096908]
[1643776557416,0.08879761,38552.0,38548.0,0.064855]
[1643776557616,0.08879761,38552.0,38550.0,0.00096907]
[1643776558654,0.08879761,38552.0,38548.0,0.064855]
[1643776558857,0.08879761,38552.0,38549.0,0.00096908]
[1643776559958,0.00110984,38559.0,38550.0,0.349944]
[1643776560158,0.00110984,38559.0,38553.0,0.064846]
[1643776560559,0.00110984,38559.0,38554.0,0.57170957]
[1643776560963,0.30897328,38562.0,38554.0,0.57170957]
[1643776561160,0.00110993,38559.0,38557.0,0.15317209]
[1643776561561,0.00110993,38559.0,38557.0,0.06483517]
[1643776561813,0.00110993,38559.0,38558.0,0.064836]
[1643776562216,0.30897328,38562.0,38558.0,0.064836]
[1643776562414,0.00110993,38560.0,38558.0,0.064836]
[1643776563514,0.30897328,38562.0,38558.0,0.064836]
[1643776563715,0.00110992,38561.0,38558.0,0.064836]
[1643776564514,2e-06,38562.0,38558.0,0.064836]
[1643776564915,0.00110992,38561.0,38558.0,0.064836]
[1643776565760,2e-06,38562.0,38558.0,0.064836]
[1643776565960,0.00110992,38561.0,38558.0,0.064836]
[1643776567063,2e-06,38562.0,38558.0,0.06475388]
[1643776567263,0.00110991,38561.0,38558.0,0.06475388]
[1643776568262,2e-06,38562.0,38558.0,0.06475388]
[1643776568461,0.00110991,38561.0,38558.0,0.06475388]
[1643776569507,2e-06,38562.0,38558.0,0.06475388]
[1643776569709,0.00110991,38561.0,38558.0,0.06475388]
[1643776570112,0.00110991,38561.0,38555.0,0.129673]
[1643776570311,0.00110991,38561.0,38553.0,0.00096897]
[1643776570510,0.4631804,38555.0,38552.0,0.246786]
[1643776570712,0.4631804,38555.0,38553.0,0.00096897]
[1643776570914,0.26258961,38555.0,38553.0,0.00096897]
[1643776571713,0.26258961,38555.0,38552.0,0.129686]
[1643776571913,0.52753609,38555.0,38552.0,0.000969]
[1643776572515,0.21584419,38556.0,38552.0,0.000969]
[1643776572713,0.21272493,38556.0,38552.0,0.000969]
[1643776572957,0.21195706,38556.0,38550.0,0.12968585]
[1643776573158,0.21208671,38556.0,38552.0,0.000969]
[1643776573557,0.24509223,38554.0,38552.0,0.000969]
[1643776574159,0.24509223,38554.0,38549.0,0.064854]
[1643776574360,0.24509223,38554.0,38551.0,0.00096902]
[1643776574760,0.45623804,38554.0,38551.0,0.00096902]
[1643776575064,0.24509223,38554.0,38551.0,0.00096902]
[1643776575360,0.24509223,38554.0,38549.0,0.064854]
[1643776575660,0.24509223,38554.0,38551.0,0.00096904]
[1643776576559,0.24509223,38554.0,38549.0,0.12970715]
[1643776576809,0.24630506,38555.0,38551.0,0.00096904]
[1643776577008,0.00110987,38559.0,38551.0,0.00096904]
[1643776577211,0.00110987,38559.0,38552.0,0.964794]
[1643776577408,0.00110987,38559.0,38555.0,0.02111358]
[1643776577610,0.00110987,38559.0,38556.0,0.349944]
[1643776577818,2e-06,38562.0,38555.0,0.02111358]
[1643776578111,0.36892746,38556.0,38555.0,0.02111358]
[1643776578907,0.37108616,38554.0,38553.0,0.00096897]
[1643776579307,0.5754208,38554.0,38553.0,0.00096897]
[1643776580311,0.79843909,38554.0,38552.0,0.00096901]
[1643776580568,0.5754208,38554.0,38552.0,0.00096901]
[1643776581373,0.07301358,38556.0,38549.0,0.22977524]
[1643776581671,0.02111358,38556.0,38552.0,0.064849]
[1643776581869,0.02111358,38556.0,38553.0,0.349944]
[1643776582874,0.02111358,38556.0,38553.0,0.35042849]
[1643776583469,0.23658966,38557.0,38553.0,0.35042849]
[1643776583870,0.23658966,38557.0,38553.0,0.349944]
[1643776584070,0.23658966,38557.0,38553.0,0.35042849]
[1643776585210,0.21158966,38557.0,38553.0,0.35102198]
[1643776585417,0.21158966,38557.0,38553.0,0.00107798]
[1643776587312,0.21158966,38557.0,38548.0,0.129698]
[1643776587513,0.21158966,38557.0,38553.0,0.00107798]
[1643776587960,0.09237559,38554.0,38553.0,0.00107798]
[1643776588659,0.09237559,38554.0,38548.0,0.129698]
[1643776588860,0.09237559,38554.0,38552.0,0.00094448]
[1643776589261,0.22253799,38553.0,38552.0,0.00094448]
[1643776589863,0.22253799,38553.0,38548.0,0.129698]
[1643776590063,0.22253799,38553.0,38551.0,0.00094451]
[1643776591064,0.22253799,38553.0,38548.0,0.129698]
[1643776591264,0.22253799,38553.0,38550.0,0.00094452]
[1643776592308,0.22253799,38553.0,38548.0,0.129698]
[1643776592508,0.22253799,38553.0,38550.0,0.00097458]
[1643776593509,0.22253799,38553.0,38548.0,0.129698]
[1643776593710,0.22253799,38553.0,38550.0,0.00097458]
[1643776594610,0.22253799,38553.0,38548.0,0.129698]
[1643776594810,0.22253799,38553.0,38550.0,0.00097458]
[1643776595862,0.22253799,38553.0,38548.0,0.129698]
[1643776596060,0.22253799,38553.0,38550.0,0.00096782]
[1643776597060,0.22253799,38553.0,38548.0,0.129698]
[1643776597262,0.22253799,38553.0,38550.0,0.00096782]
[1643776598263,0.22253799,38553.0,38548.0,0.129698]
[1643776598462,0.22253799,38553.0,38550.0,0.00096782]
[1643776599411,0.22253799,38553.0,38550.0,0.064853]
[1643776599610,0.22253799,38553.0,38550.0,0.06582234]
[1643776600612,0.22253799,38553.0,38550.0,0.064853]
[1643776600816,0.22253799,38553.0,38550.0,0.06582234]
[1643776601113,0.28216379,38556.0,38550.0,0.06582234]
[1643776601514,0.00110854,38559.0,38550.0,0.13067278]
[1643776601714,0.00110854,38559.0,38553.0,0.064848]
[1643776601915,2e-06,38562.0,38555.0,0.08019806]
[1643776602115,0.00110848,38559.0,38556.0,0.2092951]
[1643776602413,0.00110848,38559.0,38555.0,0.08019806]
[1643776603062,0.25027611,38561.0,38555.0,0.08019806]
[1643776603262,0.00110835,38559.0,38555.0,0.08019806]
[1643776604162,0.25027611,38561.0,38555.0,0.08019806]
[1643776604363,0.00110835,38559.0,38555.0,0.08019806]
[1643776605364,0.25027611,38561.0,38555.0,0.08019806]
[1643776605564,0.21670395,38557.0,38555.0,0.08019806]
[1643776607515,0.00110839,38559.0,38555.0,0.14504506]
[1643776607716,0.25027611,38561.0,38555.0,0.14504506]
[1643776608116,0.00110841,38559.0,38555.0,0.14504506]
[1643776608520,0.00110841,38559.0,38553.0,0.00096899]
[1643776608919,0.25027611,38561.0,38549.0,0.129699]
[1643776609119,0.2288786,38560.0,38553.0,0.00096899]
[1643776609318,0.2645981,38554.0,38553.0,0.00096899]
[1643776609518,0.2645981,38554.0,38553.0,0.09045819]
[1643776609718,0.2645981,38554.0,38553.0,0.20096899]
[1643776609918,0.2645981,38554.0,38553.0,0.00096899]
[1643776610118,0.2645981,38554.0,38549.0,0.129699]
[1643776610319,0.2645981,38554.0,38552.0,0.00096903]
[1643776610765,0.2645981,38554.0,38552.0,0.00026974]
[1643776611064,0.56137742,38554.0,38552.0,0.00026974]
[1643776611466,0.56137742,38554.0,38551.0,0.064852]
[1643776612667,0.56137742,38554.0,38550.0,0.08290421]
[1643776612867,0.2645981,38554.0,38551.0,0.064852]
[1643776615312,0.27504194,38552.0,38550.0,0.0840878]
[1643776615512,0.27504194,38552.0,38550.0,0.00118359]
[1643776615714,0.2645981,38554.0,38550.0,0.00118359]
[1643776616316,0.2645981,38554.0,38549.0,0.129699]
[1643776616511,0.2645981,38554.0,38550.0,0.00059179]
[1643776616512,0.21231955,38553.0,38550.0,0.00059179]
[1643776616712,0.52941655,38554.0,38550.0,0.00059179]
[1643776617513,0.02033816,38555.0,38551.0,0.349944]
[1643776617716,0.02033816,38555.0,38551.0,0.064853]
[1643776618363,0.02033816,38555.0,38552.0,0.349944]
[1643776619165,0.24893745,38555.0,38552.0,0.349944]
[1643776620967,0.32132463,38562.0,38553.0,0.06485]
[1643776620968,0.01899985,38559.0,38553.0,0.06485]
[1643776621168,0.00134637,38558.0,38553.0,0.06485]
[1643776622011,0.28006758,38557.0,38553.0,0.06485]
[1643776622214,0.54437354,38557.0,38553.0,0.06485]
[1643776622814,0.54437354,38557.0,38550.0,0.00118359]
[1643776623415,0.54437354,38557.0,38549.0,0.129699]
[1643776623614,0.54437354,38557.0,38550.0,0.00059179]
[1643776624614,0.54437354,38557.0,38549.0,0.129699]
[1643776624815,0.54437354,38557.0,38550.0,0.00118359]
[1643776625216,0.08656087,38556.0,38550.0,0.00118359]
[1643776625868,0.56553509,38557.0,38549.0,0.064857]
[1643776626068,0.56553509,38557.0,38550.0,0.00118359]
[1643776626368,0.54437354,38557.0,38550.0,0.00118359]
[1643776626967,0.56281128,38557.0,38549.0,0.064857]
[1643776627168,0.54437354,38557.0,38550.0,0.00118359]
[1643776627968,0.54437354,38557.0,38550.0,0.00065182]
[1643776628168,0.54437354,38557.0,38549.0,0.064857]
[1643776629517,0.56404147,38557.0,38549.0,0.064857]
[1643776630116,0.56404147,38557.0,38548.0,0.40634358]
[1643776630317,0.54437354,38557.0,38548.0,0.40634358]
[1643776630918,0.00134403,38556.0,38549.0,0.349944]
[1643776631120,0.00134403,38556.0,38549.0,0.67877174]
[1643776631520,0.00134403,38556.0,38550.0,0.20419101]
[1643776631720,0.00134403,38556.0,38551.0,0.349944]
[1643776631923,0.56546635,38557.0,38549.0,0.32882774]
[1643776632120,0.00134404,38556.0,38549.0,0.32882774]
[1643776632521,0.00134404,38556.0,38550.0,0.349944]
[1643776632968,0.56546635,38557.0,38550.0,0.349944]
[1643776633169,0.00134404,38556.0,38550.0,0.349944]
[1643776633370,0.00134404,38556.0,38550.0,0.5538037]
[1643776634171,0.54437354,38557.0,38550.0,0.5538037]
[1643776634373,0.00134404,38556.0,38550.0,0.5538037]
[1643776635372,0.54437354,38557.0,38550.0,0.5538037]
[1643776635572,0.54437354,38557.0,38550.0,0.349944]
[1643776635573,0.00134404,38556.0,38550.0,0.349944]
[1643776636573,0.54437354,38557.0,38550.0,0.349944]
[1643776636822,0.00134404,38556.0,38550.0,0.349944]
[1643776637825,0.54437354,38557.0,38550.0,0.349944]
[1643776638025,0.00134404,38556.0,38550.0,0.349944]
[1643776638927,0.00134404,38556.0,38555.0,0.09126572]
[1643776639125,2e-06,38562.0,38555.0,0.09126572]
[1643776639325,0.00134404,38556.0,38555.0,0.09126572]
[1643776639524,0.00134404,38556.0,38555.0,0.44120972]
[1643776640325,0.21882289,38559.0,38555.0,0.15610772]
[1643776640568,0.00134405,38557.0,38555.0,0.09126572]
[1643776641474,0.21882289,38559.0,38555.0,0.09126572]
[1643776641670,0.00134404,38558.0,38555.0,0.09126572]
[1643776642670,0.21882289,38559.0,38555.0,0.09126572]
[1643776642870,0.00134403,38558.0,38555.0,0.09126572]
[1643776643772,0.21882289,38559.0,38555.0,0.09126572]
[1643776643971,0.00134403,38558.0,38555.0,0.09126572]
[1643776644220,0.00134403,38558.0,38551.0,0.1127]
[1643776644414,0.00134403,38558.0,38550.0,0.32882774]
[1643776644615,0.26938188,38553.0,38550.0,0.32882774]
[1643776644817,0.25216273,38555.0,38551.0,0.349944]
[1643776645015,0.25216273,38555.0,38549.0,0.32882774]
[1643776645016,0.37297815,38562.0,38550.0,0.064851]
[1643776645214,0.37297815,38562.0,38550.0,0.39367874]
[1643776645215,0.00134401,38556.0,38550.0,0.39367874]
[1643776645414,0.00134401,38556.0,38553.0,0.07390277]
[1643776646016,0.25471832,38554.0,38553.0,0.07390277]
[1643776649468,0.25471832,38554.0,38553.0,0.27390277]
[1643776650073,0.2546541,38554.0,38553.0,0.07390277]
[1643776650268,0.2546541,38554.0,38553.0,0.27390277]
[1643776651270,0.2546541,38554.0,38553.0,0.2]
[1643776652919,0.2546541,38554.0,38553.0,0.29]
[1643776656767,0.2546541,38554.0,38553.0,0.09]
[1643776659915,0.2714012,38556.0,38553.0,0.09]
[1643776660818,0.27274355,38556.0,38553.0,0.09]
[1643776661017,0.24029817,38555.0,38553.0,0.09]
[1643776670769,0.00134062,38556.0,38553.0,0.09]
[1643776671368,0.05,38559.0,38553.0,0.09]
[1643776671668,0.00134063,38556.0,38553.0,0.09]
[1643776672669,0.59185265,38557.0,38553.0,0.09]
[1643776672870,0.00134063,38556.0,38553.0,0.09]
[1643776673869,0.59185265,38557.0,38553.0,0.09]
[1643776674070,0.00134063,38556.0,38553.0,0.09]
[1643776675020,0.59185265,38557.0,38553.0,0.09]
[1643776675220,0.00134063,38556.0,38553.0,0.09]